Cogmind - Beta 16.1 @@@ ROGUE MODE // 2026.02.15 @ 19:24:58 Player: AtmaWeapon Result: Destroyed self with Subdweller Shrapnel Launcher Performance ------------- Evolutions (0) 0 Regions Visited (4) 800 Robots Destroyed (26) 130 Value Destroyed (593) 593 Prototype IDs (0) 0 Alien Tech Used (0) 0 Bonus (-24) -24 TOTAL SCORE: 1499 Bonus ------- Follower Combat Kills 30 Friendly Fire -54 Cogmind --------- Core Integrity 0/250 Matter 285/300 Energy 100/100 System Corruption 1% Temperature Cool (0) Movement Rolling (130) Ox2 Location -9/Recycling Parts ------- > --- POWER (1) -------- (None) > --- PROPULSION (2) --- Subdweller Monowheel > --- UTILITY (2) ------ Large Storage Unit Makeshift System Restoration Module > --- WEAPON (2) ------- Subdweller Beam Cannon Subdweller Shrapnel Launcher > --- INVENTORY (15) --- Light Ion Engine Carbon-fiber Leg Compact Wheel Cooling System Large Battery (200) Scrap Shield Hacking Suite Particle Gun Shotgun Mini Grenade Launcher Scrap Shield Fragment (49) Scrap Shield Fragment (47) Scrap Shield Fragment (46) Scrap Shield Fragment (46) Peak State ------------ > --- POWER ------------ Subdweller Power Source > --- PROPULSION ------- Subdweller Monowheel Subdweller Monowheel > --- UTILITY ---------- Large Storage Unit Makeshift System Restoration Module > --- WEAPON ----------- Beamcaster Light EM Pulse Cannon > --- INVENTORY -------- Light Ion Engine Carbon-fiber Leg Wheel Compact Wheel Cooling System Large Battery Medium Matter Pod Scrap Shield Hacking Suite Subdweller Beam Cannon Rocket Launcher Subdweller Shrapnel Launcher Scrap Shield Fragment Scrap Shield Fragment [Rating: 20] Favorites ----------- Power Ion Engine Engine Ion Engine Propulsion Wheel Wheel Wheel Utility Large Storage Unit Device Seismic Detector Storage Large Storage Unit Protection Medium Armor Plating Weapon Beam Cannon Energy Gun Beamcaster Energy Cannon Beam Cannon Ballistic Gun Assault Rifle Launcher Subdweller Shrapnel Launcher Build | -11 -10 -10 -10 -9 ------- Run | Yrd Mat Min Sub Rec Slots Evolved . | . . . . . Power . | . . . . . Propulsion . | . . . . . Utility . | . . . . . Weapon . | . . . . . Parts Attached 27 | 7 7 1 12 . Power 3 | 1 1 . 1 . Engine 3 | 1 1 . 1 . Core . | . . . . . Reactor . | . . . . . Propulsion 6 | 2 2 . 2 . Treads . | . . . . . Leg . | . . . . . Wheel 6 | 2 2 . 2 . Hover . | . . . . . Flight . | . . . . . Utility 8 | 2 2 1 3 . Device 2 | 1 . . 1 . Storage 5 | 1 2 . 2 . Processor . | . . . . . Hackware . | . . . . . Protection 1 | . . 1 . . Artifact . | . . . . . Weapon 10 | 2 2 . 6 . Energy Gun 2 | 1 . . 1 . Energy Cannon 5 | . 2 . 3 . Ballistic Gun 1 | 1 . . . . Ballistic Cannon . | . . . . . Launcher 2 | . . . 2 . Special Weapon . | . . . . . Impact Weapon . | . . . . . Slashing Weapon . | . . . . . Piercing Weapon . | . . . . . Special Melee Weapon . | . . . . . Unidentified Prototypes . | . . . . . Corrupted Parts 1 | . . . 1 . System Corruption 8 | . . . 8 . Parts Lost 11 | . . 1 9 1 Power 2 | . . . 2 . Propulsion 3 | . . . 2 1 Utility 2 | . . 1 1 . Weapon 4 | . . . 4 . Highest Loss Streak 5 | . . 1 5 1 To Critical Strikes . | . . . . . Average Backups 11 | 3 11 15 12 9 Power 1 | . 1 1 1 1 Propulsion 3 | 2 4 3 2 2 Utility 3 | . 2 5 4 4 Weapon 2 | . 2 4 3 2 Tool/Special . | . . . . . Unused Backups 22 | . 9 1 3 9 Power 2 | . 1 . . 1 Propulsion 8 | . 6 . 1 1 Utility 4 | . . . . 4 Weapon 7 | . 2 1 1 3 Tool/Special 1 | . . . 1 . Average Slot Usage (%) 96 | . 99 94 99 85 Engine 11 | . 14 14 13 . Wheel 27 | . 28 28 27 28 Device 9 | . 14 1 6 14 Storage 14 | . 14 14 15 14 Protection 3 | . . 7 5 . Energy Gun 2 | . . . 6 . Energy Cannon 14 | . 14 28 11 14 Ballistic Gun 4 | . 12 . . . Launcher 5 | . . . 10 14 Peak Build Rating 20 | 7 10 11 20 14 Average Rating 11 | 5 7 10 16 14 On Entrance 8 | . 7 10 11 14 Avg Prop Armor Cover (%) . | . . . . . Naked Turns . | . . . . . Heaviest Build 43 | 13 33 39 43 41 Greatest Support 40 | 26 26 26 40 30 Greatest Overweight (x) 2 | 1 1 1 2 1 Average Overweight (x) . | . . 1 . 1 Largest Inventory Capacity 15 | 8 15 15 15 15 Average Capacity 14 | 7 13 15 15 15 Most Carried 15 | 8 15 15 15 15 Average Carried 13 | 3 11 14 14 14 Final Capacity 15 | 8 15 15 15 15 Final Carried 15 | 8 15 15 12 15 Class Distribution -------------------- 88% | Mutant 11% | Scavenger-Mutant Dominant Class ---------------- Mutant | -10/Materials Mutant | -10/Mines Mutant | -10/Subcaves Mutant | -9/Recycling Resources | -11 -10 -10 -10 -9 ----------- Run | Yrd Mat Min Sub Rec Matter Collected 946 | 279 140 37 197 293 Remotely . | . . . . . Salvage Created 777 | 94 155 25 420 83 Parts 49 | 7 17 2 21 2 Haulers Intercepted . | . . . . . Recyclers Shooed . | . . . . . Parts Field Recycled . | . . . . . Retrieved Matter . | . . . . . Parts Self-Destructed 8 | . . . 8 . Prevented . | . . . . . Parts Restored . | . . . . . Kills | -11 -10 -10 -10 -9 ------- Run | Yrd Mat Min Sub Rec Combat Hostiles Destroyed 20 | . 7 2 11 . Guns 5 | . 2 . 3 . Cannons 11 | . 5 2 4 . AOE 3 | . . . 3 . Classes Destroyed 8 | 2 3 . 3 . Tunneler 1 | 1 . . . . Recycler 2 | 1 . . . 1 Operator 1 | . 1 . . . Turret 2 | . . . 2 . Swarmer 10 | . 5 2 3 . Grunt 2 | . 2 . . . Subdweller 8 | . . . 8 . Scientist 1 | . . . 1 . Best Kill Streak 3 | 1 3 2 3 1 Combat Bots Only 3 | . 2 2 3 . Max Kills in Single Turn 2 | 1 1 1 2 1 Gunslinging . | . . . . . Exploded 2 | . . . 2 . Melee . | . . . . . Uniques/NPCs Destroyed . | . . . . . Combat | -11 -10 -10 -10 -9 -------- Run | Yrd Mat Min Sub Rec Hostile Shots Fired 92 | . 15 9 68 . Missed 26 | . 2 . 24 . Hits 66 | . 13 9 44 . Projectile 66 | . 13 9 44 . AOE 7 | . . 1 6 . Critical Strikes 2 | . 1 . 1 . Damage Taken 1212 | . 105 111 938 58 Core 254 | . 27 . 204 23 Absorbed by Shields . | . . . . . Core Remaining (%) 100 | 100 . . . . Volleys Fired 64 | 3 18 3 40 . Largest 2 | 2 2 2 2 . Hottest 131 | 60 116 116 131 . Shots Fired 122 | 6 36 6 73 1 Gun 46 | 6 15 . 25 . Cannon 59 | . 21 6 32 . Launcher 17 | . . . 16 1 Special . | . . . . . Kinetic 26 | 3 15 . 7 1 Thermal 52 | . 18 3 31 . Explosive 9 | . . . 9 . Electromagnetic 35 | 3 3 3 26 . Robot Hit Streak 16 | 3 6 2 16 1 Robot Miss Streak 3 | 1 3 1 3 . Penetration Max . | . . . . . Secondary Targets . | . . . . . Shots Hit Robots 74 | 3 19 4 47 1 Core Hits 37 | 3 8 2 23 1 Critical Kills . | . . . . . Critical Parts Destroyed . | . . . . . Critical Strikes . | . . . . . Melee Attacks . | . . . . . Impact . | . . . . . Slashing . | . . . . . Piercing . | . . . . . Sneak Attacks . | . . . . . Combat Hostiles . | . . . . . Follow-up Attacks . | . . . . . Damage Inflicted 2000 | 40 288 89 1522 61 Guns 510 | 40 110 . 360 . Cannons 724 | . 178 89 457 . Explosions 766 | . . . 705 61 Melee . | . . . . . Ramming . | . . . . . Kinetic 696 | 12 110 . 513 61 Thermal 658 | . 141 52 465 . Explosive 192 | . . . 192 . Electromagnetic 454 | 28 37 37 352 . Impact . | . . . . . Slashing . | . . . . . Piercing . | . . . . . Highest Corruption 8 | . . . 8 2 Average Corruption 4 | . . . 5 1 Corruption Purged 7 | . . . 6 1 Corruption Blocked . | . . . . . Effects 19 | . . . 14 5 Message Errors 4 | . . . 3 1 Matter Fused 7 | . . . 6 1 Heat Flow Errors 1 | . . . . 1 Energy Discharges 2 | . . . 1 1 Data Loss (minor) 1 | . . . 1 . Misfires 1 | . . . . 1 Alerts 1 | . . . 1 . Weapon Failures 2 | . . . 2 . Overload Shots . | . . . . . Overflow Damage 23 | . . . . 23 Projectiles . | . . . . . Explosions 23 | . . . . 23 Melee . | . . . . . Knockbacks . | . . . . . Impact . | . . . . . Kinetic . | . . . . . Secondary . | . . . . . Self-Inflicted Damage 92 | . . . 33 59 Shots 3 | . . . 2 1 Rammed . | . . . . . Targets Rammed . | . . . . . Kicked . | . . . . . Crushed . | . . . . . Highest Temperature 202 | . 108 162 72 202 Average Temperature 36 | . 33 83 22 102 Received Heat Transfer 144 | . 6 12 126 . Siege Activations . | . . . . . Martial Activations . | . . . . . Shielding Activations . | . . . . . Robots Disrupted . | . . . . . Combat Hostiles . | . . . . . Robots Corrupted 1 | . . . 1 . Combat Hostiles 1 | . . . 1 . Parts Fried . | . . . . . Impact Corruptions . | . . . . . Robots Melted . | . . . . . Combat Hostiles . | . . . . . Parts Melted 2 | . . . 2 . Heat Transferred 1258 | . 296 111 851 . Parts Sabotaged . | . . . . . Parts Stolen . | . . . . . Parts Stripped . | . . . . . Power Chain Reactions . | . . . . . Alert | -11 -10 -10 -10 -9 ------- Run | Yrd Mat Min Sub Rec Maximum Alert Level . | . . . . . Low Security (%) 100 | 100 100 100 . 100 Level 1 . | . . . . . Level 2 . | . . . . . Level 3 . | . . . . . Level 4 . | . . . . . Level 5 . | . . . . . High Security . | . . . . . Max Security . | . . . . . Peak Influence 93 | 5 93 88 . . Initial 33 | . . 33 . . Average 19 | . 17 48 . . Influence Increases 642 | 10 263 125 235 9 Destroy 0b10 Robot/C 280 | . 140 40 100 . Destroy 0b10 Robot/NC 20 | 10 5 . . 5 Destroy Leader 40 | . 30 10 . . Trap Triggered on 0b10 40 | . 40 . . . Disable Machine 15 | . 15 . . . Destroy Structure 7 | . 3 . . 4 Lose Combat Pursuer 240 | . 30 75 135 . Influence Decreases 642 | 10 178 182 263 9 Entered New Map 68 | . . 52 16 . Time Decay 467 | 10 158 120 179 . Lost Part 87 | . . 10 68 9 Purge Threat 20 | . 20 . . . Squads Dispatched 1 | . 1 . . . Investigation . | . . . . . Extermination . | . . . . . Reinforcement 1 | . 1 . . . Assault . | . . . . . Garrison . | . . . . . Intercept . | . . . . . Searches Triggered . | . . . . . Construction Impeded . | . . . . . Haulers Reinforced . | . . . . . Active Scanning Responses . | . . . . . Cargo Convoy Interrupts . | . . . . . Stealth | -11 -10 -10 -10 -9 --------- Run | Yrd Mat Min Sub Rec Distress Signals . | . . . . . Communications Jammed . | . . . . . Distress Signals . | . . . . . Times Spotted 41 | . 9 10 22 . Peak Tracking Total 9 | . 3 9 6 . Tactical Retreats 8 | . 2 3 3 . Traps | -11 -10 -10 -10 -9 ------- Run | Yrd Mat Min Sub Rec Traps Triggered 1 | . 1 . . . Indirectly . | . . . . . Trap Hack Attempts . | . . . . . Triggered . | . . . . . Disarmed . | . . . . . Reprogrammed 5 | . 5 . . . Reused 4 | . 4 . . . Traps Extracted . | . . . . . Installed . | . . . . . Triggered 4 | . 4 . . . Machines | -11 -10 -10 -10 -9 ---------- Run | Yrd Mat Min Sub Rec Machines Disabled 4 | . 1 . 3 . Max in Single Turn 2 | . 1 . 2 . Machines Repaired . | . . . . . Machines Dismantled . | . . . . . Machines Sabotaged . | . . . . . Overloaded Fab Kills . | . . . . . Hacking | -11 -10 -10 -10 -9 --------- Run | Yrd Mat Min Sub Rec Machines Accessed 6 | . 4 . . 2 Terminals 4 | . 3 . . 1 Fabricators . | . . . . . Repair Stations . | . . . . . Recycling Units 2 | . 1 . . 1 Scanalyzers . | . . . . . Garrison Access . | . . . . . Total Hacks 17 | . 13 . . 4 Successful 10 | . 8 . . 2 Failed 7 | . 5 . . 2 Catastrophic . | . . . . . Database Lockouts . | . . . . . Manual . | . . . . . Terminals 12 | . 10 . . 2 Fabricators . | . . . . . Repair Stations . | . . . . . Recycling Units 5 | . 3 . . 2 Scanalyzers . | . . . . . Garrison Access . | . . . . . Terminal Hacks 5 | . 5 . . . Unreport Threat 1 | . 1 . . . Locate Traps 1 | . 1 . . . Reprogram Traps 2 | . 2 . . . Hauler Manifests 1 | . 1 . . . Fabricator Hacks . | . . . . . Repair Station Hacks . | . . . . . Recycling Unit Hacks 5 | . 3 . . 2 Process 1 | . 1 . . . Report Inventory 2 | . 1 . . 1 Retrieve Matter 1 | . 1 . . . Retrieve Components 1 | . . . . 1 Scanalyzer . | . . . . . Garrison Access Hacks . | . . . . . Unauthorized Hacks . | . . . . . Terminals . | . . . . . Fabricators . | . . . . . Repair Stations . | . . . . . Recycling Units . | . . . . . Scanalyzers . | . . . . . Garrison Access . | . . . . . Data Cores Recovered . | . . . . . Used . | . . . . . Hacking Detections 4 | . 3 . . 1 Full Trace Events . | . . . . . Feedback Events . | . . . . . Feedback Blocked . | . . . . . Robot Schematics Acquired . | . . . . . Robots Built . | . . . . . Authchips . | . . . . . Time . | . . . . . Total Robot Build Rating . | . . . . . Part Schematics Acquired . | . . . . . Parts Built . | . . . . . Authchips . | . . . . . Time . | . . . . . Total Part Build Rating . | . . . . . Part Studies Acquired . | . . . . . Parts Repaired . | . . . . . Time . | . . . . . Parts Recycled . | . . . . . Recycled Matter 70 | . 70 . . . Retrieved Matter 70 | . 70 . . . Retrieved Components 3 | . . . . 3 Parts Scanalyzed . | . . . . . Part Schematics Acquired . | . . . . . Parts Damaged . | . . . . . Bothacking | -11 -10 -10 -10 -9 ------------ Run | Yrd Mat Min Sub Rec Used RIF Installer . | . . . . . Robots Hacked . | . . . . . Non-combat . | . . . . . Combat . | . . . . . Robot Hacks Applied . | . . . . . Relay Couplers Released . | . . . . . Fabnet Peak Effective % . | . . . . . Robots Rewired . | . . . . . Allies Hacked . | . . . . . Hacks Repelled . | . . . . . Allies | -11 -10 -10 -10 -9 -------- Run | Yrd Mat Min Sub Rec Total Allies 1 | . . 1 . . Largest Group 1 | . . 1 1 . Highest-Rated Group 31 | . . 31 31 . Highest-Rated Ally 31 | . . 31 31 . Total Orders . | . . . . . Ally Attacks 9 | . . 3 6 . Total Damage 147 | . . 42 105 . Kills 2 | . . 1 1 . Allies Corrupted . | . . . . . Allies Melted . | . . . . . Intel | -11 -10 -10 -10 -9 ------- Run | Yrd Mat Min Sub Rec Active Infowar (turns) 638 | 11 603 24 . . Seismic 638 | 11 603 24 . . Robot Analysis Total . | . . . . . Derelict Logs Recovered 1 | . . 1 . . Drone Launches . | . . . . . Drone Recoveries . | . . . . . Exploration | -11 -10 -10 -10 -9 ------------- Run | Yrd Mat Min Sub Rec Turns Passed 1808 | 75 603 246 650 234 Spaces Moved 1143 | 50 283 203 405 202 Core 1 | 1 . . . . Treads . | . . . . . Legs . | . . . . . Wheels 1142 | 49 283 203 405 202 Hover . | . . . . . Flight . | . . . . . Fastest Speed 50 | 50 90 105 105 107 Average Speed 106 | 89 100 105 114 107 Slowest Speed 130 | 95 105 105 130 107 Overloaded Moves . | . . . . . Propulsion Burnouts . | . . . . . Robots Hopped . | . . . . . Potential Cave-ins . | . . . . . Cave-ins Triggered . | . . . . . Exploration Rate (%) 30 | 3 35 61 17 34 Regions Visited 4 Branch Regions 3 Pre-discovered Areas . | . . . . . Known Exits Taken . | . . . . . Unknown Exits Taken 4 | 1 1 1 1 . Scrap Searched . | . . . . . Spaces Dug 30 | . . . 30 . Terrain Destroyed 149 | . . . 145 4 Melee . | . . . . . Projectile 3 | . . . 3 . AOE 146 | . . . 142 4 Terrain Rammed . | . . . . . Walls Destroyed . | . . . . . Machines Disabled . | . . . . . Actions | -11 -10 -10 -10 -9 --------- Run | Yrd Mat Min Sub Rec Total 1609 | 74 569 231 516 219 Wait 285 | . 225 18 28 14 Move 1139 | 49 282 202 404 202 Hop . | . . . . . Pick Up 60 | 15 23 4 15 3 Fast Attach . | . . . . . Attach 19 | 7 3 1 8 . Detach . | . . . . . Swap 15 | . 5 . 10 . Drop 27 | . 13 3 11 . Fire 64 | 3 18 3 40 . Melee . | . . . . . Ram . | . . . . . Kick . | . . . . . Crush . | . . . . . Escape Stasis . | . . . . . Rewire . | . . . . . Trap . | . . . . . Miscellaneous . | . . . . . Route ------- -11/Scrapyard -10/Materials -10/Mines -10/Subcaves -9/Recycling History --------- Turn | Location | Event 11 | -11/Scrapyard | Discovered new exit (range 16) 76 | -11/Scrapyard | Entered Materials 309 | -10/Materials | Build established: Mutant 583 | -10/Materials | Discovered new exit (range 12) 679 | -10/Materials | Entered Mines 680 | -10/Mines | Assembled infested the area 685 | -10/Mines | Assisted by a Guerilla fighting off Assembled 837 | -10/Mines | Received a Rocket Launcher from a helpful Derelict 854 | -10/Mines | Learned location of 1 exit from Materials 867 | -10/Mines | Received a Mining Laser from a helpful Derelict 909 | -10/Mines | Discovered new exit (range 10) 925 | -10/Mines | Entered Subcaves 925 | -10/Subcaves | Accompanied by 1 ally 926 | -10/Subcaves | Approached by a straggling Scientist 1237 | -10/Subcaves | Lost 3 parts (1n1u1w) 1319 | -10/Subcaves | A swath of the cavern ceiling suddenly collapsed 1492 | -10/Subcaves | Discovered new exit (range 12) 1539 | -10/Subcaves | Ambushed by Subdweller buried in earth 1547 | -10/Subcaves | Core integrity fell below 50% 1555 | -10/Subcaves | Core integrity fell below 20% 1575 | -10/Subcaves | Entered Recycling 1576 | -9/Recycling | Met a Zionite searching for Scraptown 1597 | -9/Recycling | Lost 5 parts (1p1n3w) 1809 | -9/Recycling | Destroyed self with Subdweller Shrapnel Launcher Last Messages --------------- 01591_ Acquired Shotgun. 01601_ System corrupted: Matter fused (-5). 01620_ System corrupted: Heat flow error (+227). 01667_ Connecting with Terminal... 01689_ Acquired 57 matter. 01691_ Acquired 97 matter. 01692_ Acquired 85 matter. 01693_ Acquired 52 matter. 01694_ Acquired 2 matter. 01704_ System corrupted: Energy discharge (-22). 01734_ RC3PB1/RLRNP<2 AP>F